Cogmind - Beta 10.2 @@@ ROGUE MODE // 2020.11.06 @ 18:47:58 // Halloween2020/ForbiddenLore Player: sentrybuster Result: Destroyed by G-47 Trooper with Particle Gun Performance ------------- Evolutions (2) 1000 Regions Visited (4) 800 Robots Destroyed (28) 140 Value Destroyed (735) 735 Prototype IDs (0) 0 Alien Tech Used (0) 0 Bonus (-56) -56 TOTAL SCORE: 2619 Bonus ------- Friendly Fire -56 Cogmind --------- Core Integrity 0/550 Matter 238/300 Energy 95/100 System Corruption 0% Temperature Cool (9) Movement Core (50) Location -8/Materials Parts ------- > --- POWER (1) -------- (None) > --- PROPULSION (3) --- (None) > --- UTILITY (4) ------ Visual Processing Unit > --- WEAPON (3) ------- Heavy Mace > --- INVENTORY (4) ---- Light Treads Light Treads Improved Heat Sink Datajack Peak State ------------ > --- POWER ------------ Ion Engine > --- PROPULSION ------- Aluminum Leg Aluminum Leg Aluminum Leg > --- UTILITY ---------- Small Storage Unit Visual Processing Unit > --- WEAPON ----------- Heavy EM Pulse Gun Rocket Launcher Mining Claw > --- INVENTORY -------- Light Treads Light Treads Aluminum Leg Improved Heat Sink Small Laser Datajack [Rating: 12] Favorites ----------- Power Ion Engine Engine Ion Engine Propulsion Aluminum Leg Leg Aluminum Leg Wheel Compact Wheel Utility Small Storage Unit Storage Small Storage Unit Processor Visual Processing Unit Weapon Mining Claw Energy Gun Heavy EM Pulse Gun Ballistic Gun Light Assault Rifle Launcher Rocket Launcher Impact Weapon Heavy Mace Slashing Weapon Mining Claw Build | -11 -10 -9 -9 -8 ------- Run | Scr Mat Mat Min Mat Slots Evolved 4 | . . 2 . 2 Power . | . . . . . Propulsion 1 | . . 1 . . Utility 2 | . . . . 2 Weapon 1 | . . 1 . . Parts Attached 26 | 6 7 5 5 3 Power 3 | 1 . 1 1 . Engine 3 | 1 . 1 1 . Core . | . . . . . Reactor . | . . . . . Propulsion 6 | 2 2 1 1 . Treads . | . . . . . Leg 4 | . 2 1 1 . Wheel 2 | 2 . . . . Hover . | . . . . . Flight . | . . . . . Utility 2 | 1 . 1 . . Device . | . . . . . Storage 1 | 1 . . . . Processor 1 | . . 1 . . Hackware . | . . . . . Protection . | . . . . . Artifact . | . . . . . Weapon 15 | 2 5 2 3 3 Energy Gun 8 | 2 2 1 2 1 Energy Cannon . | . . . . . Ballistic Gun 2 | . 2 . . . Ballistic Cannon . | . . . . . Launcher 2 | . . . 1 1 Special Weapon . | . . . . . Impact Weapon 1 | . . . . 1 Slashing Weapon 2 | . 1 1 . . Piercing Weapon . | . . . . . Special Melee Weapon . | . . . . . Unidentified Prototypes . | . . . . . Parts Lost 19 | . 5 . 5 9 Power 2 | . . . 1 1 Propulsion 6 | . 2 . 2 2 Utility 1 | . . . . 1 Weapon 10 | . 3 . 2 5 Highest Loss Streak 5 | . 3 . 2 5 Average Slot Usage (%) 80 | . 77 80 90 40 Engine 9 | . 11 11 8 3 Leg 19 | . 3 24 29 11 Wheel 5 | . 21 . . . Storage 11 | . 14 11 11 8 Processor 6 | . . 1 11 9 Energy Gun 11 | . 14 11 10 2 Ballistic Gun 2 | . 2 11 . . Launcher 4 | . . . 8 3 Slashing Weapon 9 | . 9 11 11 2 Naked Turns . | . . . . . Heaviest Build 18 | 13 13 15 18 16 Greatest Support 32 | 32 32 30 30 20 Greatest Overweight (x) 3 | . 3 . . 2 Average Overweight (x) . | . . . . . Largest Inventory Capacity 6 | 6 6 6 6 6 Average Capacity 5 | 5 6 6 6 5 Most Carried 6 | 4 6 6 6 6 Average Carried 5 | 2 4 5 5 5 Final Capacity 6 | 6 6 6 6 4 Final Carried 6 | 4 6 6 6 4 Class Distribution -------------------- 72% | Mutant 27% | Scavenger-Mutant Dominant Class ---------------- Mutant | -10/Materials Scavenger-Mutant | -9/Materials Mutant | -9/Mines Mutant | -8/Materials Resources | -11 -10 -9 -9 -8 ----------- Run | Scr Mat Mat Min Mat Matter Collected 470 | 229 87 49 105 . Remotely . | . . . . . Salvage Created 663 | . 287 108 180 88 Parts 57 | . 23 7 19 8 Haulers Intercepted . | . . . . . Recyclers Shooed . | . . . . . Parts Field Recycled . | . . . . . Retrieved Matter . | . . . . . Parts Self-Destructed . | . . . . . Prevented . | . . . . . Kills | -11 -10 -9 -9 -8 ------- Run | Scr Mat Mat Min Mat Combat Hostiles Destroyed 25 | . 9 2 11 3 Melee 9 | . 8 . 1 . Guns 7 | . . 2 5 . AOE 8 | . 1 . 5 2 Classes Destroyed 5 | . 3 1 . 1 Operator 1 | . . . . 1 Watcher 2 | . 1 . . 1 Swarmer 14 | . 5 . 9 . Grunt 9 | . 4 1 2 2 Sentry 2 | . . 1 . 1 Best Kill Streak 7 | . 7 2 3 2 Combat Bots Only 7 | . 7 2 3 2 Max Kills in Single Turn 3 | . 1 1 3 1 Gunslinging . | . . . . . Exploded 2 | . 1 . 2 1 Melee 1 | . 1 . 1 . Uniques/NPCs Destroyed . | . . . . . Combat | -11 -10 -9 -9 -8 -------- Run | Scr Mat Mat Min Mat Damage Taken 2035 | . 395 102 574 964 Core 801 | . 89 14 136 562 Absorbed by Shields . | . . . . . Core Remaining (%) 75 | 100 64 . 62 . Volleys Fired 40 | . 14 8 12 6 Largest 2 | . 2 2 2 2 Hottest 90 | . 90 65 78 78 Shots Fired 63 | . 20 15 19 9 Gun 50 | . 20 15 12 3 Cannon . | . . . . . Launcher 13 | . . . 7 6 Special . | . . . . . Kinetic 8 | . . 8 . . Thermal 6 | . 5 1 . . Explosive 13 | . . . 7 6 Electromagnetic 36 | . 15 6 12 3 Robot Hit Streak 11 | . 3 10 11 2 Robot Miss Streak 5 | . 2 4 3 5 Penetration Max . | . . . . . Secondary Targets . | . . . . . Shots Hit Robots 50 | . 22 7 13 8 Core Hits 44 | . 13 6 13 12 Critical Hits . | . . . . . Critical Kills . | . . . . . Critical Parts Destroyed . | . . . . . Melee Attacks 30 | . 14 1 9 6 Impact 6 | . . . . 6 Slashing 24 | . 14 1 9 . Piercing . | . . . . . Sneak Attacks . | . . . . . Combat Hostiles . | . . . . . Follow-up Attacks . | . . . . . Damage Inflicted 2256 | . 487 130 645 994 Guns 390 | . 175 105 110 . Cannons . | . . . . . Explosions 1313 | . 35 . 443 835 Melee 553 | . 277 25 92 159 Ramming . | . . . . . Kinetic 28 | . . 28 . . Thermal 521 | . 61 . . 460 Explosive 818 | . . . 443 375 Electromagnetic 336 | . 149 77 110 . Impact 159 | . . . . 159 Slashing 394 | . 277 25 92 . Piercing . | . . . . . Highest Corruption 1 | . 1 . . . Average Corruption 1 | . 1 . . . Corruption Purged . | . . . . . Effects 2 | . 2 . . . Message Errors 1 | . 1 . . . Energy Discharges 1 | . 1 . . . Overload Shots . | . . . . . Overflow Damage 236 | . 4 . 33 199 Projectiles . | . . . . . Explosions 220 | . . . 33 187 Melee 16 | . 4 . . 12 Knockbacks 1 | . . . . 1 Impact 1 | . . . . 1 Kinetic . | . . . . . Secondary . | . . . . . Self-Inflicted Damage 178 | . 5 . 73 100 Shots 4 | . 1 . 2 1 Rammed . | . . . . . Targets Rammed . | . . . . . Kicked . | . . . . . Crushed . | . . . . . Highest Temperature 235 | . 235 48 27 36 Average Temperature 58 | . 114 18 11 20 Received Heat Transfer 867 | . 174 45 180 468 Siege Activations . | . . . . . Robots Corrupted . | . . . . . Combat Hostiles . | . . . . . Parts Fried . | . . . . . Impact Corruptions 2 | . . . . 2 Robots Melted . | . . . . . Combat Hostiles . | . . . . . Parts Melted 2 | . 1 . . 1 Heat Transferred 474 | . 74 . . 400 Parts Sabotaged . | . . . . . Parts Stolen . | . . . . . Parts Stripped . | . . . . . Power Chain Reactions 1 | . 1 . . . Missiles Intercepted . | . . . . . Alert | -11 -10 -9 -9 -8 ------- Run | Scr Mat Mat Min Mat Peak Influence 318 | . 237 202 318 295 Initial 100 | . . 100 78 45 Average 135 | . 97 137 162 173 Maximum Alert Level 1 | . 1 1 1 1 Low Security (%) 77 | 100 77 97 71 60 Level 1 22 | . 22 2 28 39 Level 2 . | . . . . . Level 3 . | . . . . . Level 4 . | . . . . . Level 5 . | . . . . . High Security . | . . . . . Max Security . | . . . . . Squads Dispatched 6 | . 2 1 1 2 Investigation 1 | . 1 . . . Extermination . | . . . . . Reinforcement 4 | . 1 1 . 2 Assault 1 | . . . 1 . Garrison . | . . . . . Intercept . | . . . . . Construction Impeded . | . . . . . Haulers Reinforced . | . . . . . Stealth | -11 -10 -9 -9 -8 --------- Run | Scr Mat Mat Min Mat Distress Signals 3 | . 1 1 . 1 Communications Jammed . | . . . . . Distress Signals . | . . . . . Times Spotted 45 | . 17 4 11 13 Peak Tracking Total 10 | . 8 4 3 10 Tactical Retreats 2 | . 1 . . 1 Traps | -11 -10 -9 -9 -8 ------- Run | Scr Mat Mat Min Mat Traps Triggered 2 | . 2 . . . Indirectly . | . . . . . Trap Hack Attempts . | . . . . . Triggered . | . . . . . Disarmed 3 | . 3 . . . Reprogrammed . | . . . . . Reused 1 | . . . . 1 Traps Extracted . | . . . . . Installed 1 | . . . . 1 Triggered 1 | . . . . 1 Machines | -11 -10 -9 -9 -8 ---------- Run | Scr Mat Mat Min Mat Machines Disabled 9 | . 1 . 2 6 Max in Single Turn 3 | . 1 . 1 3 Machines Sabotaged . | . . . . . Garrisons Compromised . | . . . . . Overloaded Fab Kills . | . . . . . Fab Network Shutdowns . | . . . . . Hacking | -11 -10 -9 -9 -8 --------- Run | Scr Mat Mat Min Mat Machines Accessed 3 | . 2 1 . . Terminals 3 | . 2 1 . . Fabricators . | . . . . . Repair Stations . | . . . . . Recycling Units . | . . . . . Scanalyzers . | . . . . . Garrison Access . | . . . . . Total Hacks 7 | . 6 1 . . Successful 2 | . 1 1 . . Failed 5 | . 5 . . . Catastrophic 2 | . 2 . . . Database Lockouts . | . . . . . Manual 8 | . 7 1 . . Terminals 7 | . 6 1 . . Fabricators . | . . . . . Repair Stations . | . . . . . Recycling Units . | . . . . . Scanalyzers . | . . . . . Garrison Access . | . . . . . Terminal Hacks 1 | . 1 . . . Disarm Traps 1 | . 1 . . . Fabricator Hacks . | . . . . . Repair Station Hacks . | . . . . . Recycling Unit Hacks . | . . . . . Scanalyzer . | . . . . . Garrison Access Hacks . | . . . . . Unauthorized Hacks 1 | . . 1 . . Terminals 1 | . . 1 . . Track 1 | . . 1 . . Fabricators . | . . . . . Repair Stations . | . . . . . Recycling Units . | . . . . . Scanalyzers . | . . . . . Garrison Access . | . . . . . Data Cores Recovered . | . . . . . Used . | . . . . . Hacking Detections 2 | . 2 . . . Full Trace Events 1 | . 1 . . . Feedback Events . | . . . . . Feedback Blocked . | . . . . . Robot Schematics Acquired . | . . . . . Robots Built . | . . . . . Matter . | . . . . . Time . | . . . . . Total Robot Build Rating . | . . . . . Part Schematics Acquired . | . . . . . Parts Built . | . . . . . Matter . | . . . . . Time . | . . . . . Total Part Build Rating . | . . . . . Parts Repaired . | . . . . . Time . | . . . . . Parts Recycled . | . . . . . Recycled Matter . | . . . . . Retrieved Matter . | . . . . . Retrieved Components . | . . . . . Parts Scanalyzed . | . . . . . Part Schematics Acquired . | . . . . . Parts Damaged . | . . . . . Bothacking | -11 -10 -9 -9 -8 ------------ Run | Scr Mat Mat Min Mat Used RIF Installer . | . . . . . Robots Hacked . | . . . . . Non-combat . | . . . . . Combat . | . . . . . Robot Hacks Applied . | . . . . . Relay Couplers Released . | . . . . . Robots Rewired . | . . . . . Allies Hacked . | . . . . . Hacks Repelled . | . . . . . Allies | -11 -10 -9 -9 -8 -------- Run | Scr Mat Mat Min Mat Total Allies 1 | . . . 1 . Largest Group 1 | . . . 1 1 Highest-Rated Group 31 | . . . 31 31 Highest-Rated Ally 31 | . . . 31 31 Total Orders . | . . . . . Ally Attacks 5 | . . . . 5 Total Damage 106 | . . . . 106 Kills . | . . . . . Allies Corrupted . | . . . . . Allies Melted . | . . . . . Intel | -11 -10 -9 -9 -8 ------- Run | Scr Mat Mat Min Mat Robot Analysis Total . | . . . . . Derelict Logs Recovered 2 | . . . 2 . Drone Launches . | . . . . . Drone Recoveries . | . . . . . Exploration | -11 -10 -9 -9 -8 ------------- Run | Scr Mat Mat Min Mat Turns Passed 1194 | 65 295 186 528 120 Spaces Moved 761 | 53 181 82 374 71 Core 25 | 2 6 . . 17 Treads . | . . . . . Legs 536 | . 26 82 374 54 Wheels 200 | 51 149 . . . Hover . | . . . . . Flight . | . . . . . Fastest Speed 50 | 50 100 120 120 50 Average Speed 114 | 98 103 120 120 117 Slowest Speed 200 | 100 200 120 120 150 Overloaded Moves . | . . . . . Propulsion Burnouts . | . . . . . Robots Hopped . | . . . . . Cave-ins Triggered . | . . . . . Exploration Rate (%) 32 | 5 54 10 80 11 Regions Visited 4 Branch Regions 1 Pre-discovered Areas 1 | . . . 1 . Known Exits Taken . | . . . . . Unknown Exits Taken 4 | 1 1 1 1 . Scrap Searched 1 | . . . 1 . Spaces Dug . | . . . . . Terrain Destroyed 212 | . . . 63 149 Melee . | . . . . . Projectile . | . . . . . AOE 212 | . . . 63 149 Terrain Rammed . | . . . . . Walls Destroyed . | . . . . . Machines Disabled . | . . . . . Actions | -11 -10 -9 -9 -8 --------- Run | Scr Mat Mat Min Mat Total 955 | 62 238 152 415 88 Wait 87 | . 20 55 12 . Move 757 | 52 180 81 373 71 Hop . | . . . . . Pick Up 11 | 4 3 2 2 . Fast Attach 18 | 6 4 2 4 2 Attach 6 | . 2 2 1 1 Detach . | . . . . . Swap 2 | . 1 1 . . Drop 3 | . . . 2 1 Fire 40 | . 14 8 12 6 Melee 30 | . 14 1 9 6 Ram . | . . . . . Kick . | . . . . . Crush . | . . . . . Escape Stasis . | . . . . . Rewire . | . . . . . Trap 1 | . . . . 1 Miscellaneous . | . . . . . Route ------- -11/Scrapyard -10/Materials (discovered 2 exits: *Mat / [*Min]) -9/Materials -9/Mines -8/Materials History --------- Turn | Location | Event 22 | -11/Scrapyard | Discovered new exit (range 16) 66 | -11/Scrapyard | Entered Materials 160 | -10/Materials | Discovered new exit (range 6) 269 | -10/Materials | Discovered new exit (range 16) 311 | -10/Materials | Build established: Mutant 329 | -10/Materials | Destroyed 7 combat bots 339 | -10/Materials | Lost 3 parts (2n1w) 361 | -10/Materials | Entered another Materials area 361 | -9/Materials | Evolved 2 slots: Propulsion x1, Weapon x1 443 | -9/Materials | Discovered new exit (range 13) 547 | -9/Materials | Entered Mines 678 | -9/Mines | Learned location of Storage (-8) 985 | -9/Mines | Found a hidden stash of uninstalled traps 1060 | -9/Mines | Discovered new exit (range 12) 1061 | -9/Mines | Met a Derelict testing a Signal Generator 1075 | -9/Mines | Entered Materials 1075 | -8/Materials | Accompanied by 1 ally 1075 | -8/Materials | Evolved 2 slots: Utility x2 1145 | -8/Materials | Lost 5 parts (1p4w) 1169 | -8/Materials | Core integrity fell below 50% 1191 | -8/Materials | Core integrity fell below 20% 1195 | -8/Materials | Destroyed by G-47 Trooper with Particle Gun Last Messages --------------- 01154_ The unstable cave ceiling collapses. 01154_ T-07 Excavator is excavating. 01157_ Aluminum Leg destroyed. 01159_ T-07 Excavator is excavating. 01164_ Dropped Explosive Trap. 01165_ Installed Explosive Trap. 01167_ G-47 Trooper triggered Explosive Trap. 01167_ An explosion rips through the floor. 01167_ Recycling Unit disabled. 01167_ Flak Cannon tumbles out of recycling unit. 01167_ G-47 Trooper destroyed. 01172_ Acquired Hvy. Mace. 01176_ Destroyed Imp. Heat Sink. 01176_ G-47 Trooper system corrupted by crushing effect. 01178_ G-47 Trooper misfires. 01179_ Destroyed Particle Gun. 01179_ G-47 Trooper system corrupted by crushing effect. 01180_ G-47 Trooper system terminally corrupted. 01187_ Sml. Storage Unit destroyed. 01191_ G-47 Trooper knocked back. Map ----- +----------------------------------------------------+ | | | | | | | | | | | | | | | | | | | | | | | | | | | | | | | ????????????????????##############????? | | ???????????????????# #????? | | ???????????????????# """ """ #????? | | ???????????????????# """ """ #????? | | ?#######???????????? """ """ "T" ?????? | | ## ###??#######??? ""???????? | | #??# g #????? ?????????? | | #??# g #?######/#########??? | | #??#! ### #??? | | #??# g"" ## #??? | | ###!@Y"% ## #??? | | # g ######## #####+##### | | # g #??????# # % # | | ### #?????## ! | | # %= ##?????# | | "" ######## | | T | | = ######## | | = # #??????# | | #######??????## | | ####????????????# # | | # #???????????????# | | # # #???????????????### | | ##########????????????????? # | | ?????????????????????????? #### | | ?????????????????????????? #??? | | ?????????????????????????" # ??? | | ?????????????????????????" + % ?? | | ?????????????????????????" # ## ? | | ????????????????????????? # # " | | ????????????????????????? # ## ? | | ??????????????????????????###? #??? | | ??????????????????????????????# ????? | | ??????????????????????????????????????? | | ??????????????????????????????????????? | +----------------------------------------------------+ Best States ------------- Heat Dissipation 31 Energy Generation 10 Energy Capacity 250 Matter Stores 300 Matter Capacity 300 Sight Range 18 Terrain Scan Density 10 Evasion (%) 40 Item Schematics ----------------- None Robot Schematics ------------------ None Fabricated ------------ Nothing Alien Tech Used ----------------- None Achievements -------------- None Challenges ------------ None Game ------ Seed PortableRagnarokBuckler Manual? 0 Play Time 00:11:28 Cumulative 75.4 hours Start 2020.11.06 @ 16:21:34 End 2020.11.06 @ 18:47:58 Sessions 1 Manual Loads 0 Difficulty Rogue Special Mode Halloween2020/ForbiddenLore Game No. 149 Rogue 145 Adventurer 0 Explorer 4 Win Type - Total 0 Types 0/0/0/0/0/0/0/0/0 Lore% 57 Gallery% 62 Achievement% 43 Wizard Run 0 Options --------- ASCII 1 Keyboard 1 Movement Numpad Keybinds 0 Fullscreen 1 Font 18/CogWide Map View 76x50 Tactical HUD 1 Map Filters NONE Filters NONE Steam 1 RUN: 71a3f2c9-4386-4148-a228-27513f06a8f6